[Event "7th Sinquefield Cup GCT 2019"]
[Site "Saint Louis"]
[Date "2019.08.28"]
[Round "11.2"]
[White "Vachier-Lagrave, Maxime"]
[Black "Carlsen, Magnus"]
[Result "0-1"]
[ECO "B31"]
[WhiteElo "2778"]
[BlackElo "2882"]
[Annotator "RC"]
[PlyCount "88"]
[EventDate "2019.08.17"]
[EventType "tourn"]
[EventCountry "USA"]
[SourceTitle "playchess.com"]
[Source "ChessBase"]
[SourceQuality "1"]
[TimeMode "Bronstein"]
[TimeControl "7800+30"]

1. e4 {[%emt 0:00:00]} c5 {[%emt 0:02:30]} 2. Nf3 {[%emt 0:00:00]} Nc6 {[%emt 0:00:30]} 3. Bb5 {[%emt 0:00:00]} g6 {[%emt 0:00:30]} 4. Bxc6 {[%emt 0:00:00]} bxc6 {[%emt 0:00:30]} 5. d4 {[%emt 0:00:00]} cxd4 {[%emt 0:00:30]} 6. Qxd4 {[%emt 0:00:00]} f6 {[%emt 0:00:30]} 7. O-O {[%emt 0:00:32]} d6 {[%emt 0:00:49]} 8. c4 {[%emt 0:00:30]} c5 {[%emt 0:02:15]} 9. Qd3 {[%emt 0:02:01]} Bg7 {[%emt 0:02:15]} 10. b3 {[%emt 0:04:11]} Nh6 {[%emt 0:04:37]} 11. Nc3 {[%emt 0:00:30]} Rb8 {[%emt 0:12:03]} 12. Bd2 {[%emt 0:04:46]} O-O {[%emt 0:02:04]} 13. Rae1 {[%emt 0:00:56]} Nf7 {[%emt 0:10:28]} 14. h4 {[%emt 0:08:12]} Rb7 {[%emt 0:07:05]} 15. h5 {[%emt 0:05:37]} g5 {[%emt 0:02:46]} 16. Nh2 {[%emt 0:00:30]} Ne5 {[%emt 0:01:55]} 17. Qg3 {[%emt 0:02:51]} Kh8 {[%emt 0:04:30]} 18. f4 {[%emt 0:04:21]} gxf4 {[%emt 0:00:30]} 19. Bxf4 {[%emt 0:00:30]} Rg8 {[%emt 0:00:30]} 20. Re3 {[%emt 0:04:08]} Nc6 {[%emt 0:08:35]} 21. Qf2 {[%emt 0:02:48]} f5 {[%emt 0:07:22]} 22. Nf3 {[%emt 0:02:20]} Bxc3 {[%emt 0:02:25]} 23. Rxc3 {[%emt 0:00:30]} e5 {[%emt 0:00:30]} 24. Rd3 {[%emt 0:03:20]} exf4 {[%emt 0:21:21]} 25. Qb2+ {[%emt 0:00:30]} Rbg7 {[%emt 0:00:30]} 26. h6 {[%emt 0:00:30]} fxe4 {[%emt 0:00:30]} 27. Rd2 {[%emt 0:00:50]} exf3 {[%emt 0:09:02]} 28. hxg7+ {[%emt 0:00:30]} Rxg7 {[%emt 0:00:30]} 29. Rxf3 {[%emt 0:00:30]} Qg5 {[%emt 0:01:25]} 30. Rdf2 {[%emt 0:00:30]} Nd4 {[%emt 0:00:30]} 31. Rxf4 {[%emt 0:00:30]} Bf5 {[%emt 0:00:42]} 32. b4 {[%emt 0:01:12]} Be6 {[%emt 0:00:49]} 33. Rf8+ {[%emt 0:04:49]} Bg8 {[%emt 0:01:16]} 34. bxc5 {[%emt 0:01:52]} dxc5 {[%emt 0:00:30]} 35. Qb8 {[%emt 0:01:51]} Qe3 {[%emt 0:01:16]} 36. Qd6 {[%emt 0:00:36]} Qc1+ {[%emt 0:03:53]} 37. Kh2 {[%emt 0:03:14]} Qg5 {[%emt 0:00:30]} 38. Qd5 {[%emt 0:08:25]} Qh4+ {[%emt 0:03:11]} 39. Kg1 {[%emt 0:00:30]} Qe7 {[%emt 0:00:30]} 40. Qh5 {[%emt 0:08:30]} Qe3 {[%emt 0:02:33]} 41. Qh4 {[%emt 0:02:32]} Ne2+ {[%emt 0:00:52]} 42. Kh1 {[%emt 0:00:30]} Qc1+ {[%emt 0:00:35]} 43. Rf1 {[%emt 0:00:30]} Ng3+ {[%emt 0:00:30]} 44. Kg1 {[%emt 0:00:30]} Qe3+ {[%emt 0:00:30]} 0-1